fUST/lending_fUST_20250423
["ID","MTS","AMOUNT","RATE_DAILY","PERIOD"]
[358778052,1745422253693,-500.0,0.00019726,2]
[358778053,1745422253703,-151.0,0.00019726,2]
[358778054,1745422253712,-500.0,0.00019726,2]
[358778055,1745422253722,-500.0,0.00019726,2]
[358778056,1745422253731,-500.0,0.00019726,2]
[358778057,1745422253740,-500.0,0.00019726,2]
[358778058,1745422253750,-151.0,0.00019726,2]
[358778059,1745422253759,-198.363091,0.00019726,2]
[358778060,1745422253768,-151.0,0.00019726,2]
[358778061,1745422253778,-500.0,0.00019726,2]
[358778062,1745422253788,-500.0,0.00019726,2]
[358778063,1745422253797,-500.0,0.00019726,2]
[358778064,1745422253807,-500.0,0.00019726,2]
[358778065,1745422253819,-1146.61,0.00019726,2]
[358778066,1745422253829,-733.07,0.00019726,2]
[358778067,1745422253839,-500.0,0.00019726,2]
[358778068,1745422253848,-523.71108632,0.00019726,2]
[358778069,1745422253858,-500.0,0.00019726,2]
[358778070,1745422253869,-500.0,0.00019726,2]
[358778071,1745422253881,-500.0,0.00019726,2]
[358778072,1745422253894,-500.0,0.00019726,2]
[358778073,1745422253906,-500.0,0.00019726,2]
[358778074,1745422253915,-500.0,0.00019726,2]
[358778075,1745422253924,-500.0,0.00019726,2]
[358778076,1745422253934,-500.0,0.00019726,2]
[358778077,1745422253944,-500.0,0.00019726,2]
[358778078,1745422254100,-500.0,0.00019726,2]
[358778079,1745422254111,-500.0,0.00019726,2]
[358778080,1745422254120,-500.0,0.00019726,2]
[358778081,1745422254132,-300.0,0.00019726,2]
[358778082,1745422254142,-151.0,0.00019726,2]
[358778083,1745422254151,-151.0,0.00019726,2]
[358778084,1745422254160,-559.8,0.00019726,2]
[358778085,1745422254170,-564.99,0.00019726,2]
[358778086,1745422254179,-551.66,0.00019726,2]
[358778087,1745422254189,-500.0,0.00019726,2]
[358778088,1745422254199,-509.70443763,0.00019726,2]
[358778089,1745422254209,-500.0,0.00019726,2]
[358778090,1745422254219,-1261.588818,0.00019726,2]
[358778091,1745422254228,-1261.588818,0.00019726,2]
[358778092,1745422254238,-500.0,0.00019726,2]
[358778093,1745422254248,-500.0,0.00019726,2]
[358778094,1745422254257,-503.82910466,0.00019726,2]
[358778095,1745422254267,-151.0,0.00019726,2]
[358778096,1745422254277,-500.0,0.00019726,2]
[358778097,1745422254287,-500.0,0.00019726,2]
[358778098,1745422254296,-762.07,0.00019726,2]
[358778099,1745422254306,-151.0,0.00019726,2]
[358778100,1745422254316,-1115.7,0.00019726,2]
[358778101,1745422254325,-151.0,0.00019726,2]
[358778102,1745422254335,-500.0,0.00019726,2]
[358778103,1745422254344,-151.0,0.00019726,2]
[358778104,1745422254354,-151.0,0.00019726,2]
[358778105,1745422254363,-688.43,0.00019726,2]
[358778106,1745422254374,-500.0,0.00019726,2]
[358778107,1745422254383,-2630.14,0.00019726,2]
[358778108,1745422254393,-500.0,0.00019726,2]
[358778109,1745422254402,-500.0,0.00019726,2]
[358778110,1745422254412,-500.0,0.00019726,2]
[358778111,1745422254422,-500.0,0.00019726,2]
[358778112,1745422254432,-500.0,0.00019726,2]
[358778113,1745422254441,-500.0,0.00019726,2]
[358778114,1745422254451,-764.95,0.00019726,2]
[358778115,1745422254460,-884.75,0.00019726,2]
[358778116,1745422254470,-500.0,0.00019726,2]
[358778117,1745422254480,-500.0,0.00019726,2]
[358778118,1745422254490,-3501.3,0.00019726,2]
[358778119,1745422254500,-500.0,0.00019726,2]
[358778120,1745422254509,-410.73364894,0.00019726,2]
[358778121,1745422254520,-151.0,0.00019726,2]
[358778122,1745422254530,-500.0,0.00019726,2]
[358778123,1745422254539,-502.07,0.00019726,2]
[358778124,1745422254549,-500.0,0.00019726,2]
[358778125,1745422254559,-1338.63,0.00019726,2]
[358778126,1745422254569,-577.68,0.00019726,2]
[358778127,1745422254578,-500.0,0.00019726,2]
[358778128,1745422254588,-500.0,0.00019726,2]
[358778129,1745422254597,-4051.75,0.00019726,2]
[358778130,1745422254607,-500.0,0.00019726,2]
[358778131,1745422254616,-500.0,0.00019726,2]
[358778132,1745422254627,-272.99,0.00019726,2]
[358778133,1745422254636,-668.05,0.00019726,2]
[358778134,1745422254645,-500.0,0.00019726,2]
[358778135,1745422254655,-151.0,0.00019726,2]
[358778136,1745422254665,-185.697788,0.00019726,2]
[358778137,1745422254674,-195.822074,0.00019726,2]
[358778138,1745422254683,-195.822074,0.00019726,2]
[358778139,1745422254693,-500.0,0.00019726,2]
[358778140,1745422254702,-647.20929184,0.00019726,2]
[358778141,1745422254711,-195.822074,0.00019726,2]
[358778142,1745422254721,-195.822074,0.00019726,2]
[358778143,1745422254730,-500.0,0.00019726,2]
[358778144,1745422254739,-500.0,0.00019726,2]
[358778145,1745422254749,-151.0,0.00019726,2]
[358778146,1745422254764,-370.50875513,0.00019726,2]
[358778147,1745422254776,-448.0253448,0.00019726,2]
[358778148,1745422254786,-633.95,0.00019726,2]
[358778149,1745422254798,-500.0,0.00019726,2]
[358778150,1745422254809,-500.0,0.00019726,2]
[358778151,1745422254824,-1302.8,0.00019726,2]
[358778152,1745422254835,-500.0,0.00019726,2]
[358778153,1745422254846,-1153.65,0.00019726,2]
[358778154,1745422254857,-553.58,0.00019726,2]
[358778155,1745422254867,-500.0,0.00019726,2]
[358778156,1745422254882,-716.26,0.00019726,2]
[358778157,1745422254893,-500.0,0.00019726,2]
[358778158,1745422254903,-500.0,0.00019726,2]
[358778159,1745422254914,-500.0,0.00019726,2]
[358778160,1745422254924,-500.0,0.00019726,2]
[358778161,1745422254934,-500.0,0.00019726,2]
[358778162,1745422254945,-500.0,0.00019726,2]
[358778163,1745422254956,-12296.18,0.00019726,2]
[358778164,1745422254966,-500.0,0.00019726,2]
[358778165,1745422254976,-1046.67,0.00019726,2]
[358778166,1745422254988,-500.0,0.00019726,2]
[358778167,1745422254998,-851.89,0.00019726,2]
[358778168,1745422255008,-500.0,0.00019726,2]
[358778169,1745422255018,-534.56,0.00019726,2]
[358778170,1745422255028,-1188.25,0.00019726,2]
[358778171,1745422255038,-500.0,0.00019726,2]
[358778172,1745422255048,-500.0,0.00019726,2]
[358778173,1745422255058,-377.820616,0.00019726,2]
[358778174,1745422255068,-377.820616,0.00019726,2]
[358778175,1745422255078,-500.0,0.00019726,2]
[358778176,1745422255088,-500.0,0.00019726,2]
[358778177,1745422255098,-731.6,0.00019726,2]
[358778178,1745422255108,-12626.43,0.00019726,2]
[358778179,1745422255118,-696.88,0.00019726,2]
[358778180,1745422255130,-500.0,0.00019726,2]
[358778181,1745422255140,-377.820616,0.00019726,2]
[358778182,1745422255150,-1205.58,0.00019726,2]
[358778183,1745422255159,-377.820616,0.00019726,2]
[358778184,1745422255169,-151.0,0.00019726,2]
[358778185,1745422255179,-500.0,0.00019726,2]
[358778186,1745422255189,-151.0,0.00019726,2]
[358778187,1745422255199,-500.0,0.00019726,2]
[358778188,1745422255209,-500.0,0.00019726,2]
[358778189,1745422255219,-1012.84,0.00019726,2]
[358778190,1745422255229,-151.0,0.00019726,2]
[358778191,1745422255239,-500.0,0.00019726,2]
[358778192,1745422255248,-500.0,0.00019726,2]
[358778193,1745422255258,-151.0,0.00019726,2]
[358778194,1745422255268,-500.0,0.00019726,2]
[358778195,1745422255278,-4914.19,0.00019726,2]
[358778196,1745422255288,-500.0,0.00019726,2]
[358778197,1745422255297,-4299.91,0.00019726,2]
[358778198,1745422255307,-507.91488151,0.00019726,2]
[358778199,1745422255317,-510.48,0.00019726,2]
[358778200,1745422255327,-707.64,0.00019726,2]
[358778201,1745422255337,-1181.56,0.00019726,2]
[358778202,1745422255346,-1035.17,0.00019726,2]
[358778203,1745422255356,-500.0,0.00019726,2]
[358778204,1745422255366,-863.0,0.00019726,2]
[358778205,1745422255375,-500.0,0.00019726,2]
[358778206,1745422255385,-834.94,0.00019726,2]
[358778207,1745422255397,-3435.75,0.00019726,2]
[358778208,1745422255407,-2278.45,0.00019726,2]
[358778209,1745422255417,-753.56,0.00019726,2]
[358778210,1745422255426,-524.7866847,0.00019726,2]
[358778211,1745422255436,-500.0,0.00019726,2]
[358778212,1745422255445,-530.38,0.00019726,2]
[358778213,1745422255455,-814.85,0.00019726,2]
[358778214,1745422255464,-535.21,0.00019726,2]
[358778215,1745422255474,-500.0,0.00019726,2]
[358778216,1745422255483,-500.0,0.00019726,2]
[358778217,1745422255493,-500.0,0.00019726,2]
[358778218,1745422255502,-500.0,0.00019726,2]
[358778219,1745422255512,-890.07,0.00019726,2]
[358778220,1745422255522,-615.6,0.00019726,2]
[358778221,1745422255531,-957.38,0.00019726,2]
[358778222,1745422255541,-558.82,0.00019726,2]
[358778223,1745422255551,-433.96761271,0.00019726,2]
[358778224,1745422255561,-926.97,0.00019726,2]
[358778225,1745422255570,-500.0,0.00019726,2]
[358778226,1745422255580,-707.38,0.00019726,2]
[358778227,1745422255590,-1273.56,0.00019726,2]
[358778228,1745422255600,-500.0,0.00019726,2]
[358778229,1745422255609,-500.0,0.00019726,2]
[358778230,1745422255619,-500.0,0.00019726,2]
[358778231,1745422255631,-1103.17,0.00019726,2]
[358778232,1745422255641,-500.0,0.00019726,2]
[358778233,1745422255651,-500.0,0.00019726,2]
[358778234,1745422255660,-500.0,0.00019726,2]
[358778235,1745422255670,-500.0,0.00019726,2]
[358778236,1745422255680,-500.0,0.00019726,2]
[358778237,1745422255689,-500.0,0.00019726,2]
[358778238,1745422255699,-500.0,0.00019726,2]
[358778239,1745422255709,-500.0,0.00019726,2]
[358778240,1745422255721,-500.0,0.00019726,2]
[358778241,1745422255730,-500.0,0.00019726,2]
[358778242,1745422255740,-500.0,0.00019726,2]
[358778243,1745422255749,-500.0,0.00019726,2]
[358778244,1745422255759,-657.04,0.00019726,2]
[358778245,1745422255768,-500.0,0.00019726,2]
[358778246,1745422255777,-1609.82,0.00019726,2]
[358778247,1745422255787,-500.0,0.00019726,2]
[358778248,1745422255797,-376.6687389,0.00019726,2]
[358778249,1745422255807,-500.0,0.00019726,2]
[358778250,1745422255819,-500.0,0.00019726,2]
[358778251,1745422255829,-500.0,0.00019726,2]
[358778252,1745422255838,-500.0,0.00019726,2]
[358778253,1745422255849,-500.0,0.00019726,2]
[358778254,1745422255858,-2543.41,0.00019726,2]
[358778255,1745422255868,-783.91,0.00019726,2]
[358778256,1745422255881,-7498.68,0.00019726,2]
[358778257,1745422255892,-500.0,0.00019726,2]
[358778258,1745422255903,-2933.96,0.00019726,2]
[358778259,1745422255913,-692.21,0.00019726,2]
[358778260,1745422255923,-500.0,0.00019726,2]
[358778261,1745422255933,-500.0,0.00019726,2]
[358778262,1745422255943,-500.0,0.00019726,2]
[358778263,1745422255952,-500.0,0.00019726,2]
[358778264,1745422255962,-935.39,0.00019726,2]
[358778265,1745422255972,-5239.0,0.00019726,2]
[358778266,1745422255982,-500.0,0.00019726,2]
[358778267,1745422255991,-151.0,0.00019726,2]
[358778268,1745422256001,-537.86,0.00019726,2]
[358778269,1745422256011,-500.0,0.00019726,2]
[358778270,1745422256151,-616.52,0.00019726,2]
[358778271,1745422256162,-500.0,0.0001977,2]
[358778272,1745422256173,-160.77469476,0.00019773,2]
[358778273,1745422256183,-500.0,0.00019773,2]
[358778274,1745422256193,-500.0,0.00019773,2]
[358778275,1745422256203,-500.0,0.00019773,2]
[358778276,1745422256212,-500.0,0.00019773,2]
[358778277,1745422256222,-500.0,0.00019773,2]
[358778278,1745422256232,-500.0,0.00019773,2]
[358778279,1745422256241,-500.0,0.00019773,2]
[358778280,1745422256251,-500.0,0.00019773,2]
[358778281,1745422256261,-500.0,0.00019773,2]
[358778282,1745422256270,-633.0,0.000198,2]
[358778283,1745422256280,-500.0,0.00019805,2]
[358778284,1745422256290,-500.0,0.00019805,2]
[358778285,1745422256300,-500.0,0.00019805,2]
[358778286,1745422256310,-500.0,0.00019805,2]
[358778287,1745422256319,-500.0,0.00019805,2]
[358778288,1745422256330,-420.0,0.0001982,2]
[358778289,1745422256340,-177.2424345,0.000199,2]
[358778290,1745422256350,-245.0,0.0002,2]
[358778291,1745422256361,-154.88829984,0.0002,2]
[358778293,1745422256376,-500.0,0.0002,2]
[358778294,1745422256387,-520.83674039,0.0002,2]
[358778295,1745422256398,-500.0,0.0002,2]
[358778296,1745422256408,-500.0,0.0002,2]
[358778297,1745422256419,-504.73346579,0.0002,2]
[358778298,1745422256429,-500.0,0.0002,2]
[358778299,1745422256438,-594.19,0.0002,2]
[358778300,1745422256449,-909.19,0.0002,2]
[358778301,1745422256458,-500.0,0.0002,2]
[358778302,1745422256468,-151.0,0.0002,2]
[358778303,1745422256478,-500.0,0.0002,2]
[358778304,1745422256488,-500.0,0.0002,2]
[358778305,1745422256498,-500.0,0.0002,2]
[358778306,1745422256508,-500.0,0.0002,2]
[358778307,1745422256518,-500.0,0.0002,2]
[358778308,1745422256528,-500.0,0.0002,2]
[358778309,1745422256537,-896.26,0.0002,2]
[358778310,1745422256547,-1026.46,0.0002,2]
[358778311,1745422256558,-500.0,0.0002,2]
[358778312,1745422256568,-500.0,0.0002,2]
[358778313,1745422256578,-500.0,0.0002,2]
[358778314,1745422256589,-500.0,0.0002,2]
[358778315,1745422256599,-519.07,0.0002,2]
[358778316,1745422256609,-151.0,0.0002,2]
[358778317,1745422256618,-500.0,0.0002,2]
[358778318,1745422256631,-500.0,0.0002,2]
[358778319,1745422256641,-500.0,0.0002,2]
[358778320,1745422256651,-151.0,0.0002,2]
[358778321,1745422256661,-500.0,0.0002,2]
[358778322,1745422256670,-500.0,0.0002,2]
[358778323,1745422256680,-500.0,0.0002,2]
[358778324,1745422256690,-485.00372299,0.0002,2]
[358778325,1745422256700,-500.0,0.0002,2]
[358778326,1745422256710,-500.0,0.0002,2]
[358778327,1745422256720,-500.0,0.0002,2]
[358778328,1745422256730,-500.0,0.0002,2]
[358778329,1745422256740,-500.0,0.0002,2]
[358778330,1745422256749,-1150.28,0.0002,2]
[358778331,1745422256760,-500.0,0.0002,2]
[358778332,1745422256770,-251.765975,0.0002,2]
[358778333,1745422256780,-500.0,0.0002,2]
[358778334,1745422256790,-544.77,0.0002,2]
[358778335,1745422256800,-251.765975,0.0002,2]
[358778336,1745422256811,-500.0,0.0002,2]
[358778337,1745422256827,-500.0,0.0002,2]
[358778338,1745422256836,-151.0,0.0002,2]
[358778339,1745422256846,-899.96,0.0002,2]
[358778340,1745422256856,-516.59034905,0.0002,2]
[358778341,1745422256867,-500.0,0.0002,2]
[358778342,1745422256880,-500.0,0.0002,2]
[358778343,1745422256890,-500.0,0.0002,2]
[358778344,1745422256901,-569.64429845,0.0002,2]
[358778345,1745422256911,-500.0,0.0002,2]
[358778346,1745422256921,-500.0,0.0002,2]
[358778347,1745422256931,-500.0,0.0002,2]
[358778348,1745422256941,-500.0,0.0002,2]
[358778349,1745422256951,-500.0,0.0002,2]
[358778350,1745422256961,-3329.35,0.0002,2]
[358778351,1745422256971,-500.0,0.0002,2]
[358778352,1745422256981,-500.0,0.0002,2]
[358778353,1745422256991,-528.28,0.0002,2]
[358778354,1745422257001,-500.0,0.0002,2]
[358778355,1745422257010,-644.46,0.0002,2]
[358778356,1745422257020,-500.0,0.0002,2]
[358778357,1745422257030,-500.0,0.0002,2]
[358778358,1745422257040,-500.0,0.0002,2]
[358778359,1745422257050,-500.0,0.0002,2]
[358778360,1745422257060,-500.0,0.0002,2]
[358778361,1745422257070,-500.0,0.0002,2]
[358778362,1745422257080,-151.0,0.0002,2]
[358778363,1745422257090,-500.0,0.0002,2]
[358778364,1745422257100,-756.81,0.0002,2]
[358778365,1745422257110,-572.66,0.0002,2]
[358778366,1745422257120,-500.0,0.0002,2]
[358778367,1745422257133,-500.0,0.0002,2]
[358778368,1745422257142,-500.0,0.0002,2]
[358778369,1745422257152,-903.55,0.0002,2]
[358778370,1745422257162,-506.12,0.0002,2]
[358778371,1745422257172,-627.79,0.0002,2]
[358778372,1745422257182,-500.0,0.0002,2]
[358778373,1745422257192,-500.0,0.0002,2]
[358778374,1745422257202,-500.0,0.0002,2]
[358778375,1745422257211,-500.0,0.0002,2]
[358778376,1745422257221,-500.0,0.0002,2]
[358778377,1745422257231,-500.0,0.0002,2]
[358778378,1745422257240,-500.0,0.0002,2]
[358778379,1745422257250,-500.0,0.0002,2]
[358778380,1745422257260,-503.67885041,0.0002,2]
[358778381,1745422257270,-785.397552,0.0002,2]
[358778382,1745422257281,-2150.63,0.0002,2]
[358778383,1745422257291,-500.0,0.0002,2]
[358778384,1745422257302,-785.397552,0.0002,2]
[358778385,1745422257312,-151.0,0.0002,2]
[358778386,1745422257322,-500.0,0.0002,2]
[358778387,1745422257331,-151.0,0.0002,2]
[358778388,1745422257340,-500.0,0.0002,2]
[358778389,1745422257350,-500.0,0.0002,2]
[358778390,1745422257360,-614.57,0.0002,2]
[358778391,1745422257369,-677.08,0.0002,2]
[358778392,1745422257381,-506.24982031,0.0002,2]
[358778393,1745422257390,-307.27186396,0.0002,2]
[358778394,1745422257400,-500.0,0.0002,2]
[358778395,1745422257410,-596.25,0.0002,2]
[358778396,1745422257419,-740.32,0.0002,2]
[358778397,1745422257429,-500.0,0.0002,2]
[358778398,1745422257439,-500.0,0.0002,2]
[358778399,1745422257448,-855.06,0.0002,2]
[358778400,1745422257458,-151.0,0.0002,2]
[358778401,1745422257468,-356.26215848,0.0002,2]
[358778402,1745422257477,-151.0,0.0002,2]
[358778403,1745422257487,-151.0,0.0002,2]
[358778404,1745422257496,-413.07,0.0002,2]
[358778405,1745422257506,-815.0,0.0002,2]
[358778406,1745422257517,-202.888917,0.0002,2]
[358778407,1745422257527,-500.0,0.0002,2]
[358778408,1745422257536,-831.25,0.0002,2]
[358778409,1745422257546,-2175.19,0.0002,2]
[358778410,1745422257555,-151.0,0.0002,2]
[358778411,1745422257566,-151.0,0.0002,2]
[358778412,1745422257575,-4454.73,0.0002,2]
[358778413,1745422257585,-500.0,0.0002,2]
[358778414,1745422257595,-4421.38,0.0002,2]
[358778415,1745422257604,-500.0,0.0002,2]
[358778416,1745422257613,-151.0,0.0002,2]
[358778417,1745422257628,-151.820212,0.0002,2]
[358778418,1745422257638,-500.0,0.0002,2]
[358778419,1745422257647,-500.0,0.0002,2]
[358778420,1745422257657,-500.0,0.0002,2]
[358778421,1745422257666,-500.0,0.0002,2]
[358778422,1745422257676,-500.0,0.0002,2]
[358778423,1745422257685,-500.0,0.0002,2]
[358778424,1745422257695,-500.0,0.0002,2]
[358778425,1745422257704,-500.0,0.0002,2]
[358778426,1745422257714,-500.0,0.0002,2]
[358778427,1745422257724,-500.0,0.0002,2]
[358778428,1745422257733,-500.0,0.0002,2]
[358778429,1745422257744,-500.0,0.0002,2]
[358778430,1745422257754,-500.0,0.0002,2]
[358778431,1745422257763,-500.0,0.0002,2]
[358778432,1745422257773,-500.0,0.0002,2]
[358778433,1745422257783,-151.0,0.0002,2]
[358778434,1745422257793,-151.0,0.0002,2]
[358778435,1745422257802,-626.03031457,0.0002,2]
[358778436,1745422257812,-500.0,0.0002,2]
[358778437,1745422257824,-500.0,0.0002,2]
[358778438,1745422257834,-500.0,0.0002,2]
[358778439,1745422257844,-500.0,0.0002,2]
[358778440,1745422257854,-194.997944,0.0002,2]
[358778441,1745422257864,-500.0,0.0002,2]
[358778442,1745422257875,-500.0,0.0002,2]
[358778443,1745422257884,-500.0,0.0002,2]
[358778444,1745422257896,-1146.61,0.0002,2]
[358778445,1745422257907,-733.07,0.0002,2]
[358778446,1745422257917,-500.0,0.0002,2]
[358778447,1745422257927,-500.0,0.0002,2]
[358778448,1745422258032,-500.0,0.0002,2]
[358778449,1745422258054,-500.0,0.0002,2]
[358778450,1745422258064,-500.0,0.0002,2]
[358778451,1745422258074,-500.0,0.0002,2]
[358778452,1745422258084,-500.0,0.0002,2]
[358778453,1745422258094,-500.0,0.0002,2]
[358778454,1745422258104,-500.0,0.0002,2]
[358778455,1745422258115,-500.0,0.0002,2]
[358778456,1745422258126,-500.0,0.0002,2]
[358778457,1745422258135,-500.0,0.0002,2]
[358778458,1745422258145,-500.0,0.0002,2]
[358778459,1745422258154,-300.0,0.0002,2]
[358778460,1745422258164,-559.8,0.0002,2]
[358778461,1745422258173,-151.0,0.0002,2]
[358778462,1745422258184,-564.99,0.0002,2]
[358778463,1745422258193,-551.66,0.0002,2]
[358778464,1745422258204,-500.0,0.0002,2]
[358778465,1745422258214,-500.0,0.0002,2]
[358778466,1745422258223,-1261.588818,0.0002,2]
[358778467,1745422258234,-1261.588818,0.0002,2]
[358778468,1745422258243,-1261.588818,0.0002,2]
[358778469,1745422258253,-500.0,0.0002,2]
[358778470,1745422258262,-1261.588818,0.0002,2]
[358778471,1745422258273,-500.0,0.0002,2]
[358778472,1745422258283,-151.0,0.0002,2]
[358778473,1745422258293,-151.0,0.0002,2]
[358778474,1745422258303,-500.0,0.0002,2]
[358778475,1745422258312,-500.0,0.0002,2]
[358778476,1745422258322,-762.07,0.0002,2]
[358778477,1745422258332,-1115.7,0.0002,2]
[358778478,1745422258341,-151.0,0.0002,2]
[358778479,1745422258351,-500.0,0.0002,2]
[358778480,1745422258360,-688.43,0.0002,2]
[358778481,1745422258370,-151.0,0.0002,2]
[358778482,1745422258382,-500.0,0.0002,2]
[358778483,1745422258391,-2630.14,0.0002,2]
[358778484,1745422258402,-500.0,0.0002,2]
[358778485,1745422258412,-500.0,0.0002,2]
[358778486,1745422258422,-500.0,0.0002,2]
[358778487,1745422258432,-500.0,0.0002,2]
[358778488,1745422258442,-500.0,0.0002,2]
[358778489,1745422258452,-500.0,0.0002,2]
[358778490,1745422258462,-764.95,0.0002,2]
[358778491,1745422258474,-884.75,0.0002,2]
[358778492,1745422258484,-500.0,0.0002,2]
[358778493,1745422258494,-500.0,0.0002,2]
[358778494,1745422258503,-3501.3,0.0002,2]
[358778495,1745422258513,-500.0,0.0002,2]
[358778496,1745422258534,-500.0,0.0002,2]
[358778497,1745422258546,-502.07,0.0002,2]
[358778498,1745422258557,-500.0,0.0002,2]
[358778499,1745422258567,-1338.63,0.0002,2]
[358778500,1745422258577,-577.68,0.0002,2]
[358778501,1745422258587,-500.0,0.0002,2]
[358778502,1745422258597,-500.0,0.0002,2]
[358778503,1745422258607,-4051.75,0.0002,2]
[358778504,1745422258618,-500.0,0.0002,2]
[358778505,1745422258630,-500.0,0.0002,2]
[358778506,1745422258640,-668.05,0.0002,2]
[358778507,1745422258651,-500.0,0.0002,2]
[358778508,1745422258661,-195.822074,0.0002,2]
[358778509,1745422258671,-500.0,0.0002,2]
[358778510,1745422258681,-195.822074,0.0002,2]
[358778511,1745422258691,-500.0,0.0002,2]
[358778512,1745422258701,-500.0,0.0002,2]
[358778513,1745422258711,-151.0,0.0002,2]
[358778514,1745422258721,-633.95,0.0002,2]
[358778515,1745422258730,-500.0,0.0002,2]
[358778516,1745422258740,-638.25651696,0.0002,2]
[358778517,1745422258750,-1302.8,0.0002,2]
[358778518,1745422258760,-500.0,0.0002,2]
[358778519,1745422258769,-1153.65,0.0002,2]
[358778520,1745422258779,-553.58,0.0002,2]
[358778521,1745422258789,-500.0,0.0002,2]
[358778522,1745422258799,-716.26,0.0002,2]
[358778523,1745422258808,-500.0,0.0002,2]
[358778524,1745422258820,-444.9283952,0.0002,2]
[358778525,1745422258830,-500.0,0.0002,2]
[358778526,1745422258840,-500.0,0.0002,2]
[358778527,1745422258851,-500.0,0.0002,2]
[358778528,1745422258860,-500.0,0.0002,2]
[358778529,1745422258870,-12296.18,0.0002,2]
[358778530,1745422258881,-500.0,0.0002,2]
[358778531,1745422258892,-1046.67,0.0002,2]
[358778532,1745422258902,-500.0,0.0002,2]
[358778533,1745422258912,-851.89,0.0002,2]
[358778534,1745422258922,-500.0,0.0002,2]
[358778535,1745422258932,-534.56,0.0002,2]
[358778536,1745422258943,-1188.25,0.0002,2]
[358778537,1745422258952,-500.0,0.0002,2]
[358778538,1745422258962,-500.0,0.0002,2]
[358778539,1745422258972,-377.820616,0.0002,2]
[358778540,1745422258982,-500.0,0.0002,2]
[358778541,1745422258992,-500.0,0.0002,2]
[358778542,1745422259002,-731.6,0.0002,2]
[358778543,1745422259012,-12626.43,0.0002,2]
[358778544,1745422259022,-696.88,0.0002,2]
[358778545,1745422259031,-500.0,0.0002,2]
[358778546,1745422259041,-1205.58,0.0002,2]
[358778547,1745422259051,-377.820616,0.0002,2]
[358778548,1745422259062,-151.0,0.0002,2]
[358778549,1745422259072,-500.0,0.0002,2]
[358778550,1745422259082,-162.578096,0.0002,2]
[358778551,1745422259092,-500.0,0.0002,2]
[358778552,1745422259102,-1012.84,0.0002,2]